bitfinex/quotes_ETHUSD_20250930
["timestamp","ask_amount","ask_price","bid_price","bid_amount"]
[1759225670302,0.001,4159.4,4159.3,19.81925071]
[1759225670975,0.001,4159.4,4159.3,17.02425071]
[1759225671470,0.001,4159.4,4159.3,19.81925071]
[1759225671673,0.001,4159.4,4159.3,17.02425071]
[1759225671988,0.001,4159.4,4159.3,19.81925071]
[1759225673769,0.001,4159.4,4159.3,17.02425071]
[1759225674012,0.001,4159.4,4159.3,21.76211241]
[1759225675922,0.001,4159.4,4159.3,24.16211241]
[1759225676121,0.001,4159.4,4159.3,21.36711241]
[1759225676330,0.001,4159.4,4159.3,24.16111241]
[1759225676493,0.001,4159.4,4159.3,24.95311241]
[1759225677124,1.28064247,4161.0,4160.9,2.4033262]
[1759225677337,1.28064247,4161.0,4160.9,5.43865882]
[1759225677712,1.28064247,4161.0,4160.9,2.64365882]
[1759225677911,1.28064247,4161.0,4160.9,5.2013262]
[1759225678459,1.28064247,4161.0,4160.9,5.2003262]
[1759225678640,1.28064247,4161.0,4160.9,5.2013262]
[1759225679811,1.28064247,4161.0,4160.9,19.7013262]
[1759225681339,1.28064247,4161.0,4160.9,16.9033262]
[1759225681545,1.28064247,4161.0,4160.9,19.7023262]
[1759225682237,1.28164247,4161.0,4160.9,19.7023262]
[1759225682949,1.28164247,4161.0,4160.9,5.2023262]
[1759225683315,1.28164247,4161.0,4160.9,19.7023262]
[1759225683551,1.28164247,4161.0,4159.4,2.40414891]
[1759225683723,0.12826425,4160.9,4160.4,2.40358067]
[1759225684047,0.12826425,4160.9,4160.6,2.40348887]
[1759225684252,0.12826425,4160.9,4160.7,2.40343211]
[1759225684430,0.12826425,4160.9,4160.5,14.5]
[1759225684619,0.12826425,4160.9,4160.6,2.40349279]
[1759225684824,0.12826425,4160.9,4160.7,2.40343222]
[1759225685032,0.12826425,4160.9,4160.5,16.90351251]
[1759225685229,1.28164247,4161.0,4160.7,2.40339792]
[1759225685526,1.28164247,4161.0,4160.9,2.4033262]
[1759225685727,1.28164247,4161.0,4160.9,5.2013262]
[1759225685926,1.28164247,4161.0,4160.9,2.4033262]
[1759225687148,1.28164247,4161.0,4160.9,2.5233262]
[1759225687829,1.28164247,4161.0,4160.9,5.3213262]
[1759225688662,1.28164247,4161.0,4160.9,6.09380262]
[1759225689856,1e-08,4161.0,4160.9,20.59380262]
[1759225690624,1e-08,4161.0,4160.9,20.83930262]
[1759225690961,1e-08,4161.0,4160.9,21.27670262]
[1759225691463,1e-08,4161.0,4160.9,20.83830262]
[1759225692560,1e-08,4161.0,4160.9,21.26760262]
[1759225695259,0.669,4162.3,4161.7,2.40284895]
[1759225695458,0.2414,4162.3,4161.9,2.40274874]
[1759225695663,0.2414,4162.6,4162.1,2.40263328]
[1759225695862,0.2414,4162.6,4162.1,16.90263328]
[1759225696041,2.37660411,4162.2,4162.1,16.90263328]
[1759225696542,2.84200411,4162.2,4162.1,16.90263328]
[1759225696859,2.84200411,4162.2,4162.1,14.5]
[1759225697063,3.12620452,4162.2,4162.1,14.5]
[1759225697970,2.84200411,4162.2,4161.9,5.1977455]
[1759225698172,0.7076,4162.1,4160.9,2.40332254]
[1759225698376,0.7076,4162.0,4161.6,2.40286572]
[1759225698578,0.7076,4162.0,4161.4,2.40303367]
[1759225698745,1.23180041,4161.9,4161.4,2.40303367]
[1759225698940,1.23180041,4161.9,4161.5,2.795]
[1759225699177,0.7076,4161.8,4161.1,14.5]
[1759225699483,0.7076,4161.7,4161.2,2.795]
[1759225699664,0.7076,4161.6,4161.2,2.795]
[1759225699978,0.7076,4161.6,4161.1,16.90320166]
[1759225699979,0.7076,4161.5,4161.1,17.295]
[1759225700281,0.7076,4161.4,4161.1,17.295]
[1759225700465,0.7076,4161.3,4160.2,2.40368637]
[1759225700780,0.7076,4161.3,4159.9,0.2403]
[1759225700781,2.40310053,4161.3,4159.9,0.2403]
[1759225701074,0.7076,4161.2,4160.6,2.4034449]
[1759225701375,0.7076,4161.1,4160.7,2.795]
[1759225701873,0.7076,4161.0,4160.7,17.295]
[1759225703162,3.1076,4161.0,4160.7,17.295]
[1759225703378,0.7076,4161.0,4160.7,17.295]
[1759225703547,0.7076,4161.0,4160.7,17.294]
[1759225703746,0.7076,4161.0,4160.7,14.5]
[1759225704076,0.7076,4161.0,4160.6,2.793]
[1759225704449,0.7076,4161.0,4160.6,19.69648019]
[1759225704650,0.792,4161.3,4160.6,17.293]
[1759225704880,1.35150205,4161.3,4160.7,2.40339593]
[1759225705046,0.792,4161.3,4160.7,2.40339593]
[1759225705242,0.12,4161.0,4160.6,19.69648118]
[1759225705448,0.12,4161.0,4160.7,2.40340233]
[1759225706180,0.12,4161.0,4160.6,17.293]
[1759225707043,0.12,4161.0,4160.7,0.2403]
[1759225707474,0.12,4161.0,4160.7,2.64373461]
[1759225707678,0.12,4161.0,4160.8,2.792]
[1759225708382,0.12,4161.0,4160.9,2.6436262]
[1759225708745,0.12,4161.0,4160.9,0.2403]
[1759225708950,0.12,4161.0,4160.9,0.713]
[1759225709180,0.12,4161.0,4160.9,0.2403]
[1759225710289,0.12,4161.0,4160.9,2.6436262]
[1759225710445,0.12,4161.4,4161.2,2.40311339]
[1759225710654,0.12,4161.4,4161.2,0.2403]
[1759225711153,0.12,4161.4,4161.2,3.0293]
[1759225711469,0.12,4161.4,4161.3,0.2403]
[1759225711979,0.792,4161.3,4160.9,2.789]
[1759225712155,0.12,4161.0,4160.9,2.789]
[1759225712375,0.5854,4161.0,4160.9,2.789]
[1759225712592,0.5854,4161.0,4160.8,2.789]
[1759225712803,0.5854,4161.0,4160.8,5.19238219]
[1759225713392,0.5854,4161.0,4160.9,2.789]
[1759225713590,0.5854,4161.0,4160.0,0.4727]
[1759225713591,0.792,4160.8,4160.2,2.40371248]
[1759225713794,0.792,4160.8,4159.5,2.40411677]
[1759225713795,0.12,4160.5,4160.3,2.789]
[1759225713963,0.12,4160.5,4160.3,5.19263448]
[1759225714461,0.12,4160.5,4160.4,2.40361503]
[1759225714880,0.12,4160.8,4160.7,2.40342168]
[1759225715191,0.12,4160.8,4160.6,2.40349933]
[1759225715363,0.12,4160.8,4160.7,2.789]
[1759225715565,0.12,4160.8,4160.7,5.19244172]
[1759225715862,0.12,4160.8,4160.7,2.789]
[1759225716097,0.12,4160.8,4160.7,5.43274172]
[1759225716291,0.12,4160.8,4160.7,5.19244172]
[1759225716501,0.12,4160.8,4160.7,5.43274172]
[1759225717287,0.4406401,4161.4,4161.0,2.40324182]
[1759225717487,0.12,4161.3,4161.1,5.19117248]
[1759225717797,0.12,4161.3,4161.2,2.64345293]
[1759225718099,0.12,4161.6,4161.5,2.40297969]
[1759225718404,0.12,4161.6,4161.5,2.64327969]
[1759225718908,2.788,4162.3,4161.5,2.64327969]
[1759225718909,0.12,4162.3,4161.5,0.833]
[1759225719076,4.80246306,4162.4,4161.6,2.79]
[1759225719419,0.12,4162.0,4161.6,5.19291607]
[1759225719700,2.13440411,4162.2,4161.7,0.3603]
[1759225719995,2.13440411,4162.2,4162.1,2.40263328]
[1759225720215,2.13440411,4162.2,4162.1,5.43293328]
[1759225723406,2.13440411,4162.2,4162.1,5.19263328]
[1759225723903,2.13540411,4162.2,4162.1,5.19263328]
[1759225724806,2.13540411,4162.2,4162.1,5.42503328]
[1759225725005,2.13540411,4162.2,4162.1,6.65371148]
[1759225725212,2.13540411,4162.2,4162.1,6.77371148]
[1759225726478,2.98916576,4162.7,4162.2,2.40257556]
[1759225726674,2.98916576,4162.7,4162.6,2.52234468]
[1759225726907,2.98916576,4162.7,4162.6,5.98764468]
[1759225727104,2.98916576,4162.7,4162.6,6.82665516]
[1759225728076,2.98916576,4162.7,4162.6,6.38075516]
[1759225728318,3.66516576,4162.7,4162.6,2.907]
[1759225728688,3.66516576,4162.7,4162.6,0.12]
[1759225728906,2.4,4162.6,4162.1,2.40263283]
[1759225729117,2.4,4162.6,4162.2,2.787]
[1759225729413,2.4,4162.6,4162.4,2.40246011]
[1759225729712,2.4,4162.6,4162.5,5.1894024]
[1759225730314,2.4,4162.6,4162.5,5.4218024]
[1759225730697,2.4,4162.6,4162.5,5.1894024]
[1759225730881,2.4,4162.6,4162.1,0.2324]
[1759225731081,2.4,4162.6,4161.8,0.2324]
[1759225731082,2.8349,4162.6,4161.8,0.2324]
[1759225731283,2.8349,4162.6,4161.9,3.09511956]
[1759225731615,2.8349,4162.6,4162.5,2.4024024]
[1759225731785,2.4,4162.6,4162.5,2.787]
[1759225731981,2.4,4162.6,4161.9,2.40270421]
[1759225732329,0.4349,4162.5,4162.0,2.787]
[1759225732489,0.676,4162.4,4162.1,2.787]
[1759225732816,3.12258425,4162.6,4162.2,2.788]
[1759225732991,3.12258425,4162.6,4162.3,2.63487159]
[1759225733196,2.4,4162.6,4162.4,2.788]
[1759225733593,2.4,4162.6,4162.5,2.4024024]
[1759225733902,2.4,4162.6,4162.5,5.1904024]
[1759225734104,2.98916576,4162.7,4162.6,2.40234468]
[1759225734311,5.38916576,4162.7,4162.6,2.40234468]
[1759225735097,5.38916576,4162.7,4162.6,2.63474468]
[1759225735298,5.38916576,4162.7,4162.6,2.40234468]
[1759225735498,5.38916576,4162.7,4162.6,2.63474468]
[1759225736500,5.38916576,4162.7,4162.6,17.13474468]
[1759225737399,5.38916576,4162.7,4162.6,17.58064468]
[1759225737598,5.38916576,4162.7,4162.6,17.13474468]
[1759225738617,5.38916576,4162.7,4162.6,17.58064468]
[1759225739127,5.38916576,4162.7,4162.6,17.25474468]
[1759225740534,5.38916576,4162.7,4162.6,17.70064468]
[1759225741502,5.38916576,4162.7,4162.6,17.25474468]
[1759225741807,5.38916576,4162.7,4162.6,17.283]
[1759225742010,5.38916576,4162.7,4162.6,19.68534468]
[1759225742407,5.38916576,4162.7,4162.6,17.285]
[1759225742596,5.38916576,4162.7,4162.6,19.68734468]
[1759225745732,5.38916576,4162.7,4162.6,5.18734468]
[1759225746435,5.38916576,4162.7,4162.6,19.68734468]
[1759225747336,6.06516576,4162.7,4162.6,19.68434468]
[1759225747708,5.82406576,4162.7,4162.6,19.68434468]
[1759225747908,5.82406576,4162.7,4162.6,16.90234468]
[1759225748102,6.06516576,4162.7,4162.6,19.68334468]
[1759225748536,6.06516576,4162.7,4162.4,0.12]
[1759225748537,12.20655414,4162.7,4162.4,0.12]
[1759225748747,12.20655414,4162.7,4162.1,2.40458255]
[1759225748748,0.12,4162.5,4162.1,2.40463083]
[1759225748905,0.12,4162.5,4162.2,5.18357384]
[1759225749105,0.676,4162.4,4162.2,5.18357384]
[1759225749338,0.12,4162.5,4162.1,0.002]
[1759225749339,6.12662225,4162.3,4162.1,0.002]
[1759225749641,6.33923779,4162.2,4162.1,0.002]
[1759225750044,9.91623779,4162.2,4162.1,0.002]
[1759225755423,3.19486421,4161.7,4161.6,0.002]
[1759225755546,13.94548646,4161.7,4161.6,0.002]
[1759225755720,14.65038646,4161.7,4161.6,0.002]
[1759225755915,17.07859468,4161.7,4161.6,0.002]
[1759225756127,14.29859468,4161.7,4161.6,0.002]
[1759225756330,17.07859468,4161.7,4161.6,0.002]
[1759225763563,3.19515293,4161.2,4161.1,0.002]
[1759225763730,13.82377518,4161.2,4161.1,0.002]
[1759225763928,16.25246047,4161.2,4161.1,0.002]
[1759225764160,16.34885704,4161.2,4161.1,0.002]
[1759225765473,2.40344172,4160.7,4160.6,0.012]
[1759225765671,13.82306397,4160.7,4160.6,0.012]
[1759225765871,14.62906397,4160.7,4160.6,0.012]
[1759225766069,16.33230721,4160.7,4160.6,0.012]
[1759225766246,16.42871424,4160.7,4160.6,0.012]
[1759225767140,16.54742567,4160.7,4160.6,0.012]
[1759225774486,3.19573058,4160.2,4160.1,0.002]
[1759225774657,14.50329156,4160.2,4160.1,0.002]
[1759225775075,15.18929156,4160.2,4160.1,0.002]
[1759225775278,14.95899156,4160.2,4160.1,0.002]
[1759225775464,14.75289156,4160.2,4160.1,0.002]
[1759225777082,15.20859156,4160.2,4160.1,0.002]
[1759225777804,15.43889156,4160.2,4160.1,0.002]
[1759225778598,15.20859156,4160.2,4160.1,0.002]
[1759225778904,3.19596172,4159.8,4159.7,0.002]
[1759225779070,13.94358397,4159.8,4159.7,0.002]
[1759225779471,14.64688397,4159.8,4159.7,0.002]
[1759225779900,14.87718397,4159.8,4159.7,0.002]
[1759225780373,14.64688397,4159.8,4159.7,0.002]
[1759225780575,16.75838366,4159.8,4159.7,0.002]
[1759225785677,16.07238366,4159.8,4159.7,0.002]
[1759225786404,13.29538366,4159.8,4159.7,0.002]
[1759225786576,16.55476392,4159.8,4159.7,0.002]
[1759225787311,17.01086392,4159.8,4159.7,0.002]
[1759225787702,17.23986392,4159.8,4159.7,0.002]
[1759225788222,21.22859513,4159.8,4159.7,0.002]
[1759225789101,3.19619291,4159.4,4159.3,0.002]
[1759225789304,17.81254637,4159.4,4159.3,0.002]
[1759225789613,17.93254637,4159.4,4159.3,0.002]
[1759225789811,18.18064637,4159.4,4159.3,0.2481]
[1759225790883,18.18064637,4159.4,4159.3,0.002]
[1759225791082,20.47544935,4159.4,4159.3,0.002]
[1759225791311,20.47544935,4159.4,4159.3,0.2481]
[1759225791705,20.47544935,4159.4,4159.3,0.002]
[1759225792091,20.47544935,4159.4,4159.3,0.2481]
[1759225793385,20.47544935,4159.4,4159.3,0.002]
[1759225795096,20.47544935,4159.4,4159.3,0.2481]
[1759225796490,0.2481,4159.4,4159.3,0.7032]
[1759225796789,5.4261,4159.4,4159.3,0.7032]
[1759225796996,6.2181,4159.4,4159.3,0.002]
[1759225797403,0.2481,4159.4,4159.3,0.7032]
[1759225797602,2.778,4159.5,4159.3,3.10745071]
[1759225797814,2.4,4159.4,4159.3,2.95763754]
[1759225798324,2.4,4159.4,4159.3,0.55338683]
[1759225798527,2.4,4159.4,4159.3,1.25458683]
[1759225798895,2.4,4159.4,4159.3,3.65883754]
[1759225799218,2.4,4159.4,4159.3,1.25458683]
[1759225799424,2.4,4159.4,4159.3,0.7032]
[1759225800410,2.4,4159.4,4159.3,0.002]
[1759225800610,5.03319291,4159.4,4159.3,0.002]
[1759225800812,2.4,4159.4,4159.3,0.002]
[1759225801324,2.4,4159.4,4159.3,0.7032]
[1759225801522,2.777,4159.4,4159.3,0.7032]
[1759225801698,0.001,4159.6,4159.5,2.40413511]
[1759225801899,0.001,4159.6,4159.5,3.65669368]
[1759225802127,0.001,4159.6,4159.5,18.15669368]
[1759225804642,0.001,4159.6,4159.5,16.90413511]
[1759225804942,0.001,4159.6,4159.5,17.15023511]
[1759225805138,0.001,4159.6,4159.5,17.60533511]
[1759225805730,0.001,4159.6,4159.5,17.15023511]
[1759225806045,0.001,4159.6,4159.5,17.60533511]
[1759225806543,0.001,4159.6,4159.5,17.72533511]
[1759225807713,0.001,4159.6,4159.5,3.22533511]
[1759225808449,0.001,4159.6,4159.5,17.72533511]
[1759225808951,0.001,4159.6,4159.5,17.27023511]
[1759225809152,0.001,4159.6,4159.5,14.5]
[1759225809351,0.001,4159.6,4159.5,17.15023511]
[1759225810056,0.001,4159.6,4159.5,16.90413511]
[1759225810252,0.001,4159.6,4159.3,2.40622592]
[1759225810422,0.001,4159.6,4159.4,2.6502507]
[1759225810622,0.001,4159.6,4159.4,17.1502507]
[1759225810829,0.001,4159.6,4159.5,2.65023511]
[1759225811030,0.001,4159.6,4159.5,3.10533511]
[1759225811251,0.7240353,4159.6,4159.5,0.2461]
[1759225811435,0.7240353,4159.6,4159.5,2.65023511]
[1759225811640,0.7240353,4159.6,4159.4,14.5]
[1759225811641,3.8091353,4159.6,4159.4,14.5]
[1759225811851,0.229,4159.5,4159.4,14.5]
[1759225812034,0.6851,4159.5,4159.3,0.002]
[1759225812366,0.6811,4159.4,4159.3,0.002]
[1759225814160,5.8581,4159.4,4159.3,0.002]
[1759225814359,12.98196964,4159.4,4159.3,0.002]
[1759225814662,12.18877938,4159.4,4159.3,0.002]
[1759225814838,14.59297229,4159.4,4159.3,0.002]
[1759225815039,12.18877938,4159.4,4159.3,0.002]
[1759225815365,10.57777673,4159.4,4159.3,0.002]
[1759225816141,12.98196964,4159.4,4159.3,0.002]
[1759225817169,8.26229291,4159.4,4159.3,0.002]
[1759225817534,5.177,4159.4,4159.3,0.002]
[1759225818656,5.4213,4159.4,4159.3,0.002]
[1759225818821,5.90017648,4159.4,4159.3,0.002]
[1759225819225,6.02017648,4159.4,4159.3,0.002]
[1759225821358,9.11846939,4159.4,4159.3,0.002]
[1759225821853,11.53478757,4159.4,4159.3,0.002]
[1759225823229,16.2544643,4159.4,4159.3,0.002]
[1759225823527,11.53478757,4159.4,4159.3,0.002]
[1759225824958,8.75778757,4159.4,4159.3,0.002]
[1759225825161,16.2544643,4159.4,4159.3,0.002]
[1759225827039,20.97414103,4159.4,4159.3,0.002]
[1759225828962,16.2544643,4159.4,4159.3,0.002]
[1759225829260,13.4774643,4159.4,4159.3,0.002]
[1759225829453,16.2544643,4159.4,4159.3,0.002]
[1759225829654,20.97414103,4159.4,4159.3,0.002]
[1759225834774,20.97514103,4159.4,4159.3,0.002]
[1759225836196,20.52534103,4159.4,4159.3,0.002]
[1759225836344,16.2554643,4159.4,4159.3,0.002]
[1759225837072,20.97514103,4159.4,4159.3,0.002]
[1759225838276,18.19814103,4159.4,4159.3,0.002]
[1759225838477,20.97514103,4159.4,4159.3,0.002]
[1759225840256,5.59625071,4159.3,4159.2,0.002]
[1759225840460,7.99355614,4159.3,4159.2,0.002]
[1759225840657,8.68765614,4159.3,4159.2,0.002]
[1759225841787,8.23785614,4159.3,4159.2,0.002]
[1759225841987,8.71509237,4159.3,4159.2,0.002]
[1759225842888,8.47079237,4159.3,4159.2,0.002]
[1759225843094,3.192,4158.8,4157.8,0.2338]
[1759225843280,7.11967673,4157.9,4157.8,0.2338]
[1759225843465,9.89667673,4157.9,4157.8,0.6635]
[1759225843670,10.62012003,4157.9,4157.8,0.6635]
[1759225845193,5.9004433,4157.9,4157.8,0.6635]
[1759225845596,13.02518027,4157.9,4157.8,0.6635]
[1759225845892,13.02518027,4157.9,4157.1,3.42716942]
[1759225845893,2.4,4157.6,4157.1,3.42716942]
[1759225846062,2.4,4157.4,4157.3,0.2338]
[1759225846266,5.969,4157.4,4157.3,0.2338]
[1759225846462,9.09789922,4157.4,4157.3,0.2338]
[1759225846786,6.69254973,4157.4,4157.3,0.2338]
[1759225847573,6.69254973,4157.4,4157.1,3.42716942]
[1759225847777,6.69254973,4157.4,4157.3,0.2338]
[1759225848095,6.69254973,4157.4,4157.3,0.6635]
[1759225848798,5.59746521,4157.2,4157.1,3.42716942]
[1759225849107,11.06151555,4157.2,4157.1,3.42716942]
[1759225849266,8.37446521,4157.2,4157.1,3.42716942]
[1759225850170,5.969,4157.2,4157.1,3.42716942]
[1759225850365,0.792,4157.2,4157.1,3.42716942]
[1759225850572,3.569,4157.2,4157.1,3.66096942]
[1759225851296,3.569,4157.2,4157.1,3.42716942]
[1759225851483,9.92163946,4157.2,4157.1,3.42716942]
[1759225851673,7.51617425,4157.2,4157.1,3.42716942]
[1759225852694,3.192,4157.2,4157.1,4.09066942]
[1759225852894,5.969,4157.2,4157.1,4.09066942]
[1759225853097,6.089,4157.2,4157.1,4.09066942]
[1759225853601,6.089,4157.2,4157.1,3.66096942]
[1759225854471,6.089,4157.2,4157.1,3.66296942]
[1759225854873,2.52,4157.2,4157.1,3.66296942]
[1759225855098,0.72354973,4157.4,4157.3,2.40540735]
[1759225855277,2.777,4157.4,4157.3,2.40540735]
[1759225855600,5.177,4157.4,4157.3,3.06890735]
[1759225856366,5.177,4157.4,4157.3,17.56890735]
[1759225856984,5.177,4157.4,4157.3,14.7338]
[1759225857203,5.177,4157.4,4157.3,0.2338]
[1759225857574,5.177,4157.4,4157.3,2.63920735]
[1759225857893,5.177,4157.4,4157.3,3.06890735]
[1759225858903,5.177,4157.4,4157.3,3.09296142]
[1759225859116,2.4,4157.4,4157.3,3.06890735]
[1759225859872,0.72338399,4157.6,4157.5,2.40529164]
[1759225860072,2.4,4157.7,4157.6,2.40523378]
[1759225860474,2.777,4157.8,4157.7,2.40517593]
[1759225860812,5.177,4157.8,4157.7,2.63897593]
[1759225861106,5.177,4157.8,4157.3,0.2338]
[1759225861107,3.50037003,4157.8,4157.3,0.2338]
[1759225861282,3.8672,4157.7,4157.1,3.42916942]
[1759225861483,2.4,4157.5,4157.2,2.40546437]
[1759225861682,2.4,4157.3,4157.2,2.40546437]
[1759225862400,2.4,4157.3,4157.2,3.06896437]
[1759225862791,0.72337003,4157.8,4157.5,2.40526822]
[1759225863109,5.177,4157.7,4157.6,2.63903378]
[1759225863285,5.177,4157.7,4157.6,0.2338]
[1759225863611,5.177,4157.7,4157.1,3.42916942]
[1759225863823,2.40546521,4157.2,4157.1,3.42916942]
[1759225863985,8.37446521,4157.2,4157.1,3.42916942]
[1759225864182,9.04966521,4157.2,4157.1,3.42916942]
[1759225864710,9.77329522,4157.2,4157.1,3.42916942]
[1759225864892,11.53756499,4157.2,4157.1,3.42916942]
[1759225865088,11.65756499,4157.2,4157.1,3.42916942]
[1759225865712,9.13209978,4157.2,4157.1,3.42916942]
[1759225866010,6.81363001,4157.2,4157.1,3.42916942]
[1759225866239,3.24363001,4157.2,4157.1,3.42916942]
[1759225866390,6.02163001,4157.2,4157.1,6.4981925]
[1759225866709,6.02163001,4157.2,4157.1,6.0684925]
[1759225866911,6.02163001,4157.2,4157.1,3.66296942]
[1759225867214,6.02163001,4157.2,4157.1,6.0684925]
[1759225867610,6.02163001,4157.2,4157.1,3.66296942]
[1759225867790,6.02163001,4157.2,4157.1,3.42916942]
[1759225868298,3.24363001,4157.2,4157.1,6.0684925]
[1759225868706,0.72363001,4157.2,4157.1,7.38857451]
[1759225868938,0.12,4157.7,4157.6,2.40523378]
[1759225869131,0.2389,4159.0,4157.6,0.6635]
[1759225869288,0.72342759,4158.5,4158.1,2.40489902]
[1759225869492,0.12,4158.2,4158.1,2.40489902]
[1759225869720,5.299,4158.2,4158.1,2.40489902]
[1759225869899,0.72342759,4158.5,4158.4,2.40477106]
[1759225870097,3.50242759,4158.5,4158.4,2.40477106]
[1759225870423,3.62242759,4158.5,4158.4,2.40477106]
[1759225870624,6.02242759,4158.5,4158.4,2.40477106]
[1759225870827,2.4,4158.4,4158.3,2.40482315]
[1759225871028,3.62242759,4158.5,4158.1,2.40491342]
[1759225871238,2.4,4158.4,4158.1,2.40491342]
[1759225871388,2.4,4158.2,4158.1,2.40491342]
[1759225873518,2.4,4158.2,4158.1,2.63001342]
[1759225873825,0.72330201,4158.3,4158.2,2.40488672]
[1759225874015,2.4,4158.3,4158.2,3.08048672]
[1759225874323,2.4,4158.3,4158.1,2.40492595]
[1759225874521,2.4,4158.3,4158.2,2.40488672]
[1759225874722,2.4,4158.3,4158.2,2.62998672]
[1759225874922,2.4,4158.3,4158.2,3.08048672]
[1759225875143,2.4,4158.3,4157.8,0.5705]
[1759225875427,2.4,4158.3,4158.2,14.5]
[1759225875642,2.4,4158.3,4157.3,0.2251]
[1759225875643,3.7107302,4158.3,4157.3,0.2251]
[1759225875794,0.12,4157.9,4157.7,2.40516732]
[1759225875998,5.177,4157.8,4157.7,16.90516732]
[1759225876809,5.177,4157.8,4157.7,2.40516732]
[1759225879143,5.177,4157.8,4157.7,2.40517593]
[1759225879440,5.77903875,4157.8,4157.3,0.12]
[1759225879627,5.77903875,4157.8,4157.2,2.40546521]
[1759225879628,0.44,4157.7,4157.2,2.40546521]
[1759225879832,2.4,4157.5,4157.3,2.40540297]
[1759225880037,2.4,4157.5,4157.4,14.5]
[1759225880541,0.72344678,4157.5,4157.4,17.14364949]
[1759225880742,5.90044678,4157.5,4157.4,17.57994949]
[1759225881264,5.90044678,4157.5,4157.4,17.14364949]
[1759225881622,3.12344678,4157.5,4157.4,17.57994949]
[1759225881966,0.246,4159.2,4158.1,2.40490606]
[1759225882162,0.792,4158.6,4158.0,2.40498369]
[1759225882455,0.792,4158.4,4158.0,2.40498369]
[1759225882658,2.777,4158.3,4158.0,2.40498369]
[1759225883163,0.72337875,4158.2,4157.9,2.40504611]
[1759225883463,0.72337875,4158.2,4158.1,2.40494456]
[1759225883621,0.72337875,4158.2,4157.7,0.2383]
[1759225883817,2.777,4158.1,4157.4,17.5153]
[1759225884136,2.777,4158.1,4157.6,2.40522893]
[1759225884137,2.4,4158.0,4157.6,2.40522893]
[1759225884330,2.4,4157.8,4156.7,0.86248756]
[1759225884558,2.4,4157.6,4157.2,2.4054162]
[1759225884757,2.4,4157.4,4157.2,2.4054162]
[1759225884923,5.177,4157.3,4157.2,2.4054162]
[1759225886040,5.177,4157.3,4157.1,5.83467296]
[1759225886240,5.177,4157.3,4157.2,2.40546521]
[1759225886681,5.177,4157.3,4157.1,5.83468882]
[1759225886980,6.14650262,4157.3,4157.1,5.8346911]
[1759225887162,3.12350262,4157.3,4157.2,2.64376521]
[1759225887370,5.90050262,4157.3,4157.2,2.40546521]
[1759225890652,5.90050262,4157.3,4157.2,16.90546521]
[1759225891539,5.90050262,4157.3,4157.1,3.42916942]
[1759225891740,2.4,4157.2,4157.1,3.42916942]
[1759225891947,0.686,4157.2,4157.1,3.42916942]
[1759225892479,0.96950087,4157.2,4157.1,3.42916942]
[1759225892682,0.72350087,4157.2,4157.1,3.42916942]
[1759225892887,3.12350087,4157.2,4157.1,3.42916942]
[1759225895385,3.12350087,4157.2,4157.1,5.8346925]
[1759225895553,3.12350087,4157.2,4157.1,3.42916942]
[1759225895752,3.12350087,4157.2,4157.1,5.8346925]
[1759225895953,0.72350087,4157.2,4157.1,5.8346925]
[1759225896155,3.50050087,4157.2,4157.1,5.8346925]
[1759225896388,5.177,4157.2,4157.1,5.8346925]
[1759225896592,0.246,4158.3,4157.1,6.20616942]
[1759225896759,0.72340143,4157.8,4157.6,2.40518372]
[1759225897093,2.777,4157.7,4157.6,2.40518372]
[1759225897788,2.4,4157.6,4157.4,2.40533999]
[1759225897974,5.177,4157.5,4157.4,2.40533999]
[1759225899990,5.177,4157.5,4157.4,3.07993999]
[1759225900293,2.4,4157.5,4157.4,3.07993999]
[1759225900477,2.4,4157.5,4157.4,2.64363999]
[1759225901090,2.4,4157.5,4157.4,17.14363999]
[1759225901297,2.4,4157.5,4157.4,17.57993999]
[1759225901592,2.4,4157.5,4157.4,17.14363999]
[1759225902904,1.033,4158.6,4157.4,20.35413999]
[1759225903096,0.12,4158.2,4157.9,2.40501738]
[1759225903289,2.4,4158.0,4157.9,2.64991738]
[1759225903489,2.4,4158.0,4157.7,2.52513751]
[1759225903823,2.4,4158.0,4157.8,2.40511446]
[1759225904374,2.4,4158.0,4157.7,0.12]
[1759225904593,2.4,4157.8,4157.4,2.40533951]
[1759225904794,3.487,4157.7,4157.5,14.5]
[1759225905102,2.4,4157.6,4157.5,14.5]
[1759225907111,2.4,4157.6,4157.5,16.90529164]
[1759225907411,2.4,4157.6,4157.5,17.15019164]
[1759225907789,2.776,4157.8,4157.5,14.7449]
[1759225908120,2.4,4157.7,4157.6,3.08363378]
[1759225908324,3.12340143,4157.9,4157.7,2.40517593]
[1759225908614,0.72340143,4157.9,4157.8,3.08351809]
[1759225912116,0.72340143,4157.9,4157.8,17.70351809]
[1759225912728,0.72340143,4157.9,4157.8,14.62]
[1759225912925,0.72340143,4157.9,4157.8,17.02511809]
[1759225914919,2.641,4158.2,4157.9,2.40505065]
[1759225915122,0.711,4158.1,4157.8,17.02509797]
[1759225915303,0.241,4158.0,4157.8,17.02509797]
[1759225915503,0.241,4158.0,4157.9,2.40506024]
[1759225916322,0.241,4158.0,4157.8,14.62]
[1759225916735,0.241,4158.0,4157.8,17.02507942]
[1759225916935,0.241,4158.0,4157.8,17.02509787]
[1759225917134,0.711,4158.0,4157.8,17.02509787]
[1759225917338,0.241,4158.0,4157.8,17.02509787]
[1759225917540,0.241,4158.0,4157.9,2.40506024]
[1759225918049,0.241,4158.0,4157.8,17.02511621]
[1759225918333,3.231,4157.9,4157.4,2.40532538]
[1759225918496,0.711,4157.8,4157.3,2.896]
[1759225918697,3.017,4157.7,4157.4,14.5]
[1759225918896,3.017,4157.7,4157.5,2.40525253]
[1759225919127,3.017,4157.7,4157.4,2.40534561]